fUST/lending_fUST_20240114
["ID","MTS","AMOUNT","RATE_DAILY","PERIOD"]
[311535358,1705195842452,-500.0,0.0003041,2]
[311535359,1705195842460,-500.0,0.0003041,2]
[311535360,1705195842469,-500.0,0.0003041,2]
[311535361,1705195842479,-500.0,0.0003041,2]
[311535362,1705195842488,-503.99642735,0.0003041,2]
[311535363,1705195842498,-500.0,0.0003041,2]
[311535364,1705195842507,-500.0,0.0003041,2]
[311535365,1705195842517,-500.0,0.0003041,2]
[311535366,1705195842526,-500.0,0.0003041,2]
[311535367,1705195842538,-500.0,0.0003041,2]
[311535368,1705195842548,-500.0,0.0003041,2]
[311535369,1705195842558,-500.0,0.0003041,2]
[311535370,1705195842569,-500.0,0.0003041,2]
[311535371,1705195842578,-500.0,0.0003041,2]
[311535372,1705195842587,-500.0,0.0003041,2]
[311535373,1705195842597,-500.0,0.0003041,2]
[311535374,1705195842606,-550.0,0.0003041,2]
[311535375,1705195842616,-500.0,0.0003041,2]
[311535376,1705195842626,-500.0,0.0003041,2]
[311535377,1705195842635,-500.0,0.0003041,2]
[311535378,1705195842644,-500.0,0.0003041,2]
[311535379,1705195842654,-540.34902769,0.0003041,2]
[311535380,1705195842663,-500.0,0.0003041,2]
[311535381,1705195842674,-500.0,0.0003041,2]
[311535382,1705195842683,-500.0,0.0003041,2]
[311535383,1705195842693,-500.0,0.0003041,2]
[311535384,1705195842703,-530.81502069,0.0003041,2]
[311535385,1705195842713,-500.0,0.0003041,2]
[311535386,1705195842722,-500.0,0.0003041,2]
[311535387,1705195842731,-1223.58,0.0003041,2]
[311535388,1705195842740,-500.0,0.0003041,2]
[311535389,1705195842750,-189.83387166,0.0003041,2]
[311535390,1705195842759,-505.56719072,0.0003041,2]
[311535391,1705195842768,-500.0,0.0003041,2]
[311535392,1705195842777,-503.61558939,0.0003041,2]
[311535393,1705195842787,-500.0,0.0003041,2]
[311535394,1705195842796,-500.0,0.0003041,2]
[311535395,1705195842806,-501.81359818,0.0003041,2]
[311535396,1705195842815,-515.5027129,0.0003041,2]
[311535397,1705195842824,-625.94,0.0003041,2]
[311535398,1705195842834,-1689.39,0.0003041,2]
[311535399,1705195842843,-500.0,0.0003041,2]
[311535400,1705195842852,-501.7758194,0.0003041,2]
[311535401,1705195842861,-500.0,0.0003041,2]
[311535402,1705195842871,-500.0,0.0003041,2]
[311535403,1705195842880,-500.0,0.0003041,2]
[311535404,1705195842890,-151.61,0.0003066,30]
[311535405,1705195842899,-1134.0,0.0003066,30]
[311535406,1705195842908,-1973.0,0.0003066,30]
[311535407,1705195842918,-150.5,0.00030662,30]
[311535408,1705195842927,-1134.0,0.0003067,30]
[311535409,1705195842936,-1973.0,0.0003067,30]
[311535410,1705195842946,-150.5,0.00030672,30]
[311535411,1705195842955,-150.5,0.00030672,30]
[311535412,1705195842964,-167.45,0.0003068,30]
[311535413,1705195842973,-1134.0,0.0003068,30]
[311535414,1705195842982,-1973.0,0.0003068,30]
[311535415,1705195842991,-150.5,0.00030682,30]
[311535416,1705195843000,-150.5,0.00030682,30]
[311535417,1705195843010,-500.0,0.00030684,2]
[311535418,1705195843019,-500.0,0.00030684,2]
[311535419,1705195843028,-500.0,0.00030684,2]
[311535420,1705195843038,-500.0,0.00030684,2]
[311535421,1705195843047,-500.0,0.00030684,2]
[311535422,1705195843056,-500.0,0.00030684,2]
[311535423,1705195843065,-379.63044271,0.00030684,2]
[311535424,1705195843074,-500.0,0.00030684,2]
[311535425,1705195843083,-500.0,0.00030684,2]
[311535426,1705195843092,-500.0,0.00030684,2]
[311535427,1705195843101,-500.0,0.00030684,2]
[311535428,1705195843110,-500.0,0.00030684,2]
[311535429,1705195843122,-451.62976484,0.00030684,2]
[311535430,1705195843131,-500.0,0.00030684,2]
[311535431,1705195843139,-500.0,0.00030684,2]
[311535432,1705195843149,-644.44128891,0.00030684,2]
[311535433,1705195843158,-500.0,0.00030684,2]
[311535434,1705195843168,-500.0,0.00030684,2]
[311535435,1705195843177,-500.0,0.00030684,2]
[311535436,1705195843186,-500.0,0.00030684,2]
[311535437,1705195843195,-500.0,0.00030684,2]
[311535438,1705195843205,-500.0,0.00030684,2]
[311535439,1705195843214,-494.52868408,0.00030684,2]
[311535440,1705195843223,-500.0,0.00030684,2]
[311535441,1705195843232,-500.0,0.00030684,2]
[311535442,1705195843242,-786.34,0.00030684,2]
[311535443,1705195843250,-500.0,0.00030684,2]
[311535444,1705195843259,-6280.4,0.00030684,2]
[311535445,1705195843268,-500.0,0.00030684,2]
[311535446,1705195843277,-500.0,0.00030684,2]
[311535447,1705195843287,-500.0,0.00030684,2]
[311535448,1705195843295,-500.0,0.00030684,2]
[311535449,1705195843304,-500.0,0.00030684,2]
[311535450,1705195843314,-500.0,0.00030684,2]
[311535451,1705195843323,-500.0,0.00030684,2]
[311535452,1705195843332,-500.0,0.00030684,2]
[311535453,1705195843341,-494.17936272,0.00030684,2]
[311535454,1705195843350,-500.0,0.00030684,2]
[311535455,1705195843359,-500.0,0.00030684,2]
[311535456,1705195843368,-500.0,0.00030684,2]
[311535457,1705195843377,-500.0,0.00030684,2]
[311535458,1705195843386,-1310.32,0.00030684,2]
[311535459,1705195843395,-500.0,0.00030684,2]
[311535460,1705195843405,-500.0,0.00030684,2]
[311535461,1705195843413,-500.0,0.00030684,2]
[311535462,1705195843423,-207.22156571,0.00030684,2]
[311535463,1705195843432,-500.0,0.00030684,2]
[311535464,1705195843441,-340.52,0.00030684,2]
[311535465,1705195843450,-626.73818404,0.00030684,2]
[311535466,1705195843459,-500.0,0.00030684,2]
[311535467,1705195843468,-500.0,0.00030684,2]
[311535468,1705195843477,-500.0,0.00030684,2]
[311535469,1705195843486,-500.0,0.00030684,2]
[311535470,1705195843495,-500.0,0.00030684,2]
[311535471,1705195843504,-547.06,0.00030684,2]
[311535472,1705195843512,-500.0,0.00030684,2]
[311535473,1705195843521,-500.0,0.00030684,2]
[311535474,1705195843530,-500.0,0.00030684,2]
[311535475,1705195843539,-4275.82,0.00030684,2]
[311535476,1705195843548,-500.0,0.00030684,2]
[311535477,1705195843557,-770.2,0.00030684,2]
[311535478,1705195843566,-500.0,0.00030684,2]
[311535479,1705195843575,-500.0,0.00030684,2]
[311535480,1705195843584,-500.0,0.00030684,2]
[311535481,1705195843592,-500.0,0.00030684,2]
[311535482,1705195843601,-500.0,0.00030684,2]
[311535483,1705195843612,-500.0,0.00030684,2]
[311535484,1705195843621,-234.93743939,0.00030684,2]
[311535485,1705195843630,-500.0,0.00030684,2]
[311535486,1705195843639,-333.2,0.00030684,2]
[311535487,1705195843648,-500.0,0.00030684,2]
[311535488,1705195843657,-500.0,0.00030684,2]
[311535489,1705195843667,-500.0,0.00030684,2]
[311535490,1705195843677,-500.0,0.00030684,2]
[311535491,1705195843686,-500.0,0.00030684,2]
[311535492,1705195843694,-500.0,0.00030684,2]
[311535493,1705195843704,-1223.58,0.00030684,2]
[311535494,1705195843713,-500.0,0.00030684,2]
[311535495,1705195843722,-500.0,0.00030684,2]
[311535496,1705195843731,-500.0,0.00030684,2]
[311535497,1705195843740,-503.02436514,0.00030684,2]
[311535498,1705195843749,-625.94,0.00030684,2]
[311535499,1705195843758,-1689.39,0.00030684,2]
[311535500,1705195843767,-500.0,0.00030684,2]
[311535501,1705195843777,-393.87499347,0.00030684,2]
[311535502,1705195843785,-459.72204338,0.00030684,2]
[311535503,1705195843796,-500.0,0.00030684,2]
[311535504,1705195843805,-6000.0,0.000308,2]
[311535505,1705195843815,-5999.97,0.00030904,2]
[311535506,1705195843823,-500.0,0.00030958,2]
[311535507,1705195843833,-500.0,0.00030958,2]
[311535508,1705195843842,-560.27805403,0.00030958,2]
[311535509,1705195843851,-500.0,0.00030958,2]
[311535510,1705195843860,-500.0,0.00030958,2]
[311535511,1705195843869,-500.0,0.00030958,2]
[311535512,1705195843879,-500.0,0.00030958,2]
[311535513,1705195843889,-500.0,0.00030958,2]
[311535514,1705195843899,-500.0,0.00030958,2]
[311535515,1705195843909,-500.0,0.00030958,2]
[311535516,1705195843919,-500.0,0.00030958,2]
[311535517,1705195843928,-500.0,0.00030958,2]
[311535518,1705195843938,-500.0,0.00030958,2]
[311535519,1705195843947,-510.97783528,0.00030958,2]
[311535520,1705195843956,-645.17173758,0.00030958,2]
[311535521,1705195843966,-500.0,0.00030958,2]
[311535522,1705195843976,-503.88246748,0.00030958,2]
[311535523,1705195843985,-500.0,0.00030958,2]
[311535524,1705195843995,-500.0,0.00030958,2]
[311535525,1705195844005,-786.34,0.00030958,2]
[311535526,1705195844014,-635.39888117,0.00030958,2]
[311535527,1705195844023,-6280.4,0.00030958,2]
[311535528,1705195844032,-500.0,0.00030958,2]
[311535529,1705195844041,-500.0,0.00030958,2]
[311535530,1705195844050,-500.0,0.00030958,2]
[311535531,1705195844059,-500.0,0.00030958,2]
[311535532,1705195844070,-554.52,0.00030958,2]
[311535533,1705195844079,-500.0,0.00030958,2]
[311535534,1705195844089,-500.0,0.00030958,2]
[311535535,1705195844098,-500.0,0.00030958,2]
[311535536,1705195844109,-1310.32,0.00030958,2]
[311535537,1705195844122,-500.0,0.00030958,2]
[311535538,1705195844132,-500.0,0.00030958,2]
[311535539,1705195844142,-500.0,0.00030958,2]
[311535541,1705195844151,-500.0,0.00030958,2]
[311535542,1705195844160,-500.0,0.00030958,2]
[311535543,1705195844172,-500.0,0.00030958,2]
[311535544,1705195844182,-500.0,0.00030958,2]
[311535545,1705195844192,-314.78744038,0.00030958,2]
[311535546,1705195844201,-519.44592669,0.00030958,2]
[311535547,1705195844210,-547.06,0.00030958,2]
[311535548,1705195844220,-500.0,0.00030958,2]
[311535549,1705195844230,-500.0,0.00030958,2]
[311535550,1705195844241,-500.0,0.00030958,2]
[311535551,1705195844252,-4275.82,0.00030958,2]
[311535552,1705195844260,-770.2,0.00030958,2]
[311535553,1705195844269,-192.7,0.00030958,2]
[311535554,1705195844278,-500.0,0.00030958,2]
[311535555,1705195844287,-500.0,0.00030958,2]
[311535556,1705195844296,-500.0,0.00030958,2]
[311535557,1705195844305,-500.0,0.00030958,2]
[311535559,1705195844314,-500.0,0.00030958,2]
[311535561,1705195844324,-420.14,0.00030958,2]
[311535562,1705195844335,-500.0,0.00030958,2]
[311535563,1705195844344,-500.0,0.00030958,2]
[311535564,1705195844352,-1223.58,0.00030958,2]
[311535565,1705195844361,-500.0,0.00030958,2]
[311535566,1705195844370,-557.26811774,0.00030958,2]
[311535567,1705195844380,-625.94,0.00030958,2]
[311535569,1705195844389,-1689.39,0.00030958,2]
[311535571,1705195844398,-590.72678018,0.00030958,2]
[311535573,1705195844407,-500.0,0.00030958,2]
[311535575,1705195844416,-150.5,0.0003097,30]
[311535576,1705195844426,-150.5,0.0003097,30]
[311535578,1705195844435,-150.5,0.0003098,30]
[311535580,1705195844444,-150.5,0.0003098,30]
[311535581,1705195844452,-366.90852007,0.00030986,2]
[311535582,1705195844461,-553.36745706,0.00030986,2]
[311535583,1705195844470,-150.5,0.0003099,30]
[311535584,1705195844479,-150.5,0.0003099,30]
[311535585,1705195844488,-196.588548,0.00030993,2]
[311535586,1705195844564,-196.588548,0.00030993,2]
[311535587,1705195844582,-174.578095,0.00030993,2]
[311535588,1705195844623,-3700.84102665,0.00030998,4]
[311535589,1705195844631,-4711.91259146,0.00030998,3]
[311535590,1705195844641,-310.00775039,0.00030998,2]
[311535591,1705195844651,-605.85654158,0.00030999,4]
[311535592,1705195844660,-436.6767042,0.00030999,4]
[311535593,1705195844669,-500.0,0.00030999,4]
[311535594,1705195844679,-462.47770723,0.00030999,4]
[311535595,1705195844688,-234.51374564,0.00030999,4]
[311535596,1705195844697,-8513.60475812,0.00031,4]
[311535597,1705195844900,-196.67934627,0.00030136,2]
[311535598,1705195844911,-4223.25279965,0.00031,4]
[311535599,1705195844923,-10328.54111606,0.00031,4]
[311535600,1705195844934,-3328.769998,0.00031,4]
[311535601,1705195844945,-503.01188397,0.00031,4]
[311535704,1705197034307,-155.01550155,0.00027117,4]
[311535705,1705197034316,-260.35384667,0.00027118,7]
[311535706,1705197034325,-3825.48194628,0.0002712,2]
[311535707,1705197034336,-889.12928806,0.0002712,2]
[311535708,1705197034345,-3328.33,0.00027121,3]
[311535709,1705197034353,-2563.62102097,0.00027121,3]
[311535765,1705197038486,-209.98897903,0.00027121,3]
[311535767,1705197038496,-2311.34,0.00027121,3]
[311535769,1705197038506,-7345.5854855,0.00027131,2]
[311535775,1705197038549,-73753.94827236,0.00027131,2]
[311535777,1705197038559,-24900.0,0.00027132,2]
[311535779,1705197038569,-185.1445784,0.00027882,2]
[311535781,1705197038578,-176.72030506,0.00028102,2]
[311535783,1705197038589,-1116.18791097,0.00028107,2]
[311535795,1705197038694,-271.18486428,0.00028107,2]
[311535797,1705197038708,-169.9749297,0.00028109,2]
[311535799,1705197038720,-1961.60679602,0.00028342,2]
[311535801,1705197038729,-889.34153025,0.00028342,2]
[311535803,1705197038739,-5000.0,0.00028342,5]
[311535805,1705197038750,-27705.48268273,0.00028682,2]
[311535806,1705197038762,-155.41064903,0.00029,2]
[311535807,1705197038773,-156.02297453,0.00029136,2]
[311535808,1705197038783,-157.59641185,0.00029244,2]
[311535809,1705197038793,-187.84667295,0.00029347,2]
[311535810,1705197038803,-425.44912606,0.00029347,2]
[311535811,1705197038813,-228.88751844,0.0002945,4]
[311535812,1705197038825,-200.0,0.00029844,15]
[311535813,1705197038835,-155.01550155,0.0003,2]
[311535814,1705197038847,-1212.23031285,0.0003,2]
[311535815,1705197038859,-324.0,0.0003,2]
[311535816,1705197038871,-8729.90025719,0.00030035,2]
[311535847,1705197043492,-500.0,0.00030035,2]
[311535946,1705197403997,1419.25323098,0.0003,120]
[311536126,1705198238716,-155.01550155,0.00026566,4]
[311536128,1705198238726,-260.35384667,0.00026567,7]
[311536130,1705198238735,-160.48232317,0.00026582,2]
[311536132,1705198238744,-10512.10364483,0.00026748,2]
[311536133,1705198238754,-22459.683079,0.00026749,2]
[311536135,1705198238765,-4729.88441025,0.00027129,2]
[311536137,1705198238775,-1373.80820778,0.00028342,3]
[311536140,1705198238785,-1203.39863382,0.00028342,3]
[311536142,1705198238794,-5000.0,0.00028345,5]
[311536144,1705198238804,-20729.09456843,0.00028348,4]
[311536146,1705198238814,-319.52902915,0.00028626,5]
[311536148,1705198238823,-4574.53,0.0002907,3]
[311536150,1705198238832,-5489.44,0.0002908,3]
[311536152,1705198238841,-6587.33,0.0002909,3]
[311536154,1705198238850,-9103.92623029,0.000291,4]
[311536155,1705198238859,-155.31249568,0.00029147,2]
[311536156,1705198238868,-153.0,0.00029315,2]
[311536157,1705198238877,-306.2703506,0.00029315,2]
[311536158,1705198238886,-153.0,0.00029315,2]
[311536159,1705198238895,-306.2535945,0.00029315,2]
[311536160,1705198238904,-153.0,0.00029315,2]
[311536161,1705198238913,-153.0,0.00029315,2]
[311536162,1705198238923,-153.0,0.00029315,2]
[311536163,1705198238933,-153.0,0.00029315,2]
[311536164,1705198238942,-385.27650189,0.00029347,2]
[311536165,1705198238952,-277.81713994,0.00029347,2]
[311536166,1705198238961,-3214.30973779,0.00029347,2]
[311536167,1705198238971,-624.75217062,0.00029349,2]
[311536168,1705198238979,-200.0,0.00029422,15]
[311536169,1705198238989,-224.9303038,0.000295,30]
[311536170,1705198238998,-509.22464917,0.0002979,3]
[311536171,1705198239007,-151.65771755,0.0002994,2]
[311536172,1705198239016,-272.13904,0.00029999,2]
[311536173,1705198239026,-900.48074021,0.0003,2]
[311536174,1705198239035,-6187.7426343,0.0003,2]
[311536175,1705198239044,-2190.2246157,0.0003,2]
[311536176,1705198239053,-7720.89915465,0.0003,2]
[311536177,1705198239063,-155.14831659,0.0003,4]
[311536178,1705198239072,-1212.24243636,0.0003,2]
[311536179,1705198239081,-246.32054593,0.0003,5]
[311536180,1705198239090,-1490.73105159,0.0003,2]
[311536181,1705198239100,-687.21028914,0.0003,4]
[311536182,1705198239109,-192.0,0.0003,2]
[311536183,1705198239118,-1212.24243636,0.0003,2]
[311536184,1705198239128,-155.01550155,0.00030035,2]
[311536185,1705198239137,-282.77222254,0.00030035,3]
[311536186,1705198239146,-410.71787832,0.00030035,2]
[311536187,1705198239156,-1028.26634123,0.00030035,14]
[311536188,1705198239165,-502.03551782,0.00030035,2]
[311536189,1705198239174,-415.28574469,0.00030035,2]
[311536190,1705198239184,-3738.08353316,0.00030132,4]
[311536191,1705198239194,-2704.97113721,0.00030133,4]
[311536192,1705198239203,-219.19893537,0.00030133,4]
[311536193,1705198239213,-155.30519564,0.00030133,4]
[311536194,1705198239223,-155.34727272,0.00030133,2]
[311536195,1705198239232,-155.01940927,0.00030133,4]
[311536196,1705198239241,-216.8600227,0.00030133,2]
[311536197,1705198239251,-155.2340082,0.00030133,4]
[311536198,1705198239259,-8412.14302205,0.00030134,4]
[311536199,1705198239268,-155.38396562,0.00030134,2]
[311536200,1705198239277,-155.18522897,0.00030134,4]
[311536201,1705198239287,-392.61912595,0.00030135,2]
[311536202,1705198239297,-41217.80989476,0.00030135,4]
[311536203,1705198239306,-500.0,0.00030136,2]
[311536204,1705198239316,-500.0,0.00030136,2]
[311536205,1705198239325,-505.87450352,0.00030136,2]
[311536206,1705198239334,-500.0,0.00030136,2]
[311536207,1705198239344,-500.0,0.00030136,2]
[311536208,1705198239353,-500.0,0.00030136,2]
[311536209,1705198239362,-500.0,0.00030136,2]
[311536210,1705198239372,-505.10649631,0.00030136,2]
[311536211,1705198239381,-500.0,0.00030136,2]
[311536212,1705198239392,-500.0,0.00030136,2]
[311536213,1705198239404,-500.0,0.00030136,2]
[311536214,1705198239419,-494.9431029,0.00030136,2]
[311536215,1705198239428,-500.0,0.00030136,2]
[311536216,1705198239438,-500.0,0.00030136,2]
[311536217,1705198239447,-502.22218072,0.00030136,2]
[311536218,1705198239457,-500.0,0.00030136,2]
[311536219,1705198239466,-500.0,0.00030136,2]
[311536220,1705198239476,-500.0,0.00030136,2]
[311536221,1705198239486,-500.0,0.00030136,2]
[311536222,1705198239495,-500.0,0.00030136,2]
[311536223,1705198239505,-500.0,0.00030136,2]
[311536224,1705198239514,-500.0,0.00030136,2]
[311536225,1705198239524,-500.0,0.00030136,2]
[311536226,1705198239533,-500.0,0.00030136,2]
[311536227,1705198239543,-500.0,0.00030136,2]
[311536228,1705198239552,-500.0,0.00030136,2]
[311536229,1705198239562,-500.0,0.00030136,2]
[311536230,1705198239571,-501.46630927,0.00030136,2]
[311536231,1705198239580,-500.0,0.00030136,2]
[311536232,1705198239589,-253.64738023,0.00030136,2]
[311536233,1705198239598,-501.63487213,0.00030136,2]
[311536234,1705198239607,-500.0,0.00030136,2]
[311536235,1705198239616,-553.31632899,0.00030136,2]
[311536236,1705198239626,-500.0,0.00030136,2]
[311536237,1705198239635,-500.0,0.00030136,2]
[311536238,1705198239644,-509.79128618,0.00030136,2]
[311536239,1705198239653,-501.78617306,0.00030136,2]
[311536240,1705198239662,-500.0,0.00030136,2]
[311536241,1705198239671,-500.4137572,0.00030136,2]
[311536242,1705198239683,-500.89998059,0.00030136,2]
[311536243,1705198239693,-500.0,0.00030136,2]
[311536244,1705198239702,-525.8177469,0.00030136,2]
[311536245,1705198239712,-500.0,0.00030136,2]
[311536246,1705198239722,-500.0,0.00030136,2]
[311536247,1705198239731,-502.71971081,0.00030136,2]
[311536248,1705198239741,-500.0,0.00030136,2]
[311536249,1705198239750,-500.0,0.00030136,2]
[311536250,1705198239760,-500.0,0.00030136,2]
[311536251,1705198239769,-552.99822751,0.00030136,2]
[311536252,1705198239779,-1000.0,0.00030136,2]
[311536253,1705198239790,-500.0,0.00030136,2]
[311536254,1705198239800,-526.63370436,0.00030136,2]
[311536255,1705198239810,-504.42543785,0.00030136,2]
[311536256,1705198239819,-577.60757592,0.00030136,2]
[311536257,1705198239828,-500.0,0.00030136,2]
[311536258,1705198239838,-556.39010233,0.00030136,2]
[311536259,1705198239847,-500.0,0.00030136,2]
[311536260,1705198239857,-155.14192239,0.00030136,2]
[311536261,1705198239867,-500.0,0.00030136,2]
[311536262,1705198239877,-500.0,0.00030136,2]
[311536263,1705198239886,-500.0,0.00030136,2]
[311536264,1705198239896,-500.0,0.00030136,2]
[311536265,1705198239905,-504.93057832,0.00030136,2]
[311536266,1705198239914,-503.11562979,0.00030136,2]
[311536267,1705198239924,-455.60495024,0.00030136,2]
[311536268,1705198239935,-532.46959026,0.00030136,2]
[311536269,1705198239944,-500.0,0.00030136,2]
[311536270,1705198239953,-501.67031792,0.00030136,2]
[311536271,1705198239964,-500.0,0.00030136,2]
[311536272,1705198239974,-287.40897555,0.00030136,2]
[311536273,1705198239984,-500.0,0.00030136,2]
[311536274,1705198239994,-505.12210664,0.00030136,2]
[311536275,1705198240003,-500.0,0.00030136,2]
[311536276,1705198240012,-500.0,0.00030136,2]
[311536277,1705198240021,-500.0,0.00030136,2]
[311536278,1705198240030,-500.0,0.00030136,2]
[311536279,1705198240039,-500.0,0.00030136,2]
[311536280,1705198240049,-195.11807323,0.00030136,2]
[311536281,1705198240058,-500.0,0.00030136,2]
[311536282,1705198240067,-500.0,0.00030136,2]
[311536283,1705198240077,-308.95333986,0.00030136,2]
[311536284,1705198240086,-500.0,0.00030136,2]
[311536285,1705198240095,-500.0,0.00030136,2]
[311536286,1705198240105,-504.33509197,0.00030136,2]
[311536287,1705198240114,-503.79190715,0.00030136,2]
[311536288,1705198240124,-500.0,0.00030136,2]
[311536289,1705198240134,-453.24259165,0.00030136,2]
[311536290,1705198240143,-500.0,0.00030136,2]
[311536291,1705198240154,-500.0,0.00030136,2]
[311536292,1705198240163,-500.0,0.00030136,2]
[311536293,1705198240172,-500.0,0.00030136,2]
[311536294,1705198240183,-500.0,0.00030136,2]
[311536295,1705198240193,-500.0,0.00030136,2]
[311536296,1705198240202,-500.0,0.00030136,2]
[311536297,1705198240211,-500.0,0.00030136,2]
[311536298,1705198240221,-501.27849338,0.00030136,2]
[311536299,1705198240230,-500.0,0.00030136,2]
[311536300,1705198240239,-502.31888881,0.00030136,2]
[311536301,1705198240249,-500.0,0.00030136,2]
[311536302,1705198240258,-500.0,0.00030136,2]
[311536303,1705198240268,-500.0,0.00030136,2]
[311536304,1705198240277,-500.0,0.00030136,2]
[311536305,1705198240286,-500.0,0.00030136,2]
[311536306,1705198240296,-501.7884904,0.00030136,2]
[311536307,1705198240305,-500.0,0.00030136,2]
[311536308,1705198240314,-501.24793934,0.00030136,2]
[311536309,1705198240324,-500.0,0.00030136,2]
[311536310,1705198240333,-500.42283029,0.00030136,2]
[311536311,1705198240342,-198.01866133,0.00030136,2]
[311536312,1705198240351,-500.0,0.00030136,2]
[311536313,1705198240361,-500.0,0.00030136,2]
[311536314,1705198240370,-565.75460999,0.00030136,2]
[311536315,1705198240379,-343.96365382,0.00030136,2]
[311536316,1705198240389,-500.0,0.00030136,2]
[311536317,1705198240398,-504.18164391,0.00030136,2]
[311536318,1705198240409,-527.7237988,0.00030136,2]
[311536319,1705198240418,-500.0,0.00030136,2]
[311536320,1705198240429,-529.78472823,0.00030136,2]
[311536321,1705198240439,-500.0,0.00030136,2]
[311536322,1705198240447,-500.0,0.00030136,2]
[311536323,1705198240456,-500.0,0.00030136,2]
[311536324,1705198240466,-500.0,0.00030136,2]
[311536325,1705198240475,-500.0,0.00030136,2]
[311536326,1705198240485,-500.0,0.00030136,2]
[311536327,1705198240494,-500.0,0.00030136,2]
[311536328,1705198240503,-500.0,0.00030136,2]
[311536329,1705198240511,-500.0,0.00030136,2]
[311536330,1705198240521,-500.85998618,0.00030136,2]
[311536331,1705198240530,-346.64960511,0.00030136,2]
[311536332,1705198240538,-506.37140964,0.00030136,2]
[311536333,1705198240547,-501.9980605,0.00030136,2]
[311536334,1705198240557,-500.0,0.00030136,2]
[311536335,1705198240566,-500.0,0.00030136,2]
[311536336,1705198240575,-500.0,0.00030136,2]
[311536337,1705198240585,-500.0,0.00030136,2]
[311536338,1705198240597,-500.0,0.00030136,2]
[311536339,1705198240607,-500.0,0.00030136,2]
[311536341,1705198240617,-504.08665223,0.00030136,2]
[311536343,1705198240626,-500.0,0.00030136,2]
[311536345,1705198240635,-500.0,0.00030136,2]
[311536347,1705198240644,-500.0,0.00030136,2]
[311536349,1705198240653,-500.0,0.00030136,2]
[311536351,1705198240662,-500.0,0.00030136,2]
[311536353,1705198240671,-516.74625266,0.00030136,2]
[311536356,1705198240682,-500.0,0.00030136,2]
[311536360,1705198240692,-500.0,0.00030136,2]
[311536362,1705198240700,-500.0,0.00030136,2]
[311536363,1705198240710,-505.8073812,0.00030136,2]
[311536365,1705198240719,-504.80258485,0.00030136,2]
[311536368,1705198240727,-500.0,0.00030136,2]
[311536370,1705198240737,-214.17436321,0.00030136,2]
[311536372,1705198240746,-500.0,0.00030136,2]
[311536374,1705198240755,-508.43949603,0.00030136,2]
[311536376,1705198240764,-500.0,0.00030136,2]
[311536377,1705198240774,-500.0,0.00030136,2]
[311536378,1705198240783,-500.0,0.00030136,2]
[311536379,1705198240792,-500.0,0.00030136,2]
[311536380,1705198240801,-500.0,0.00030136,2]
[311536381,1705198240811,-501.96851689,0.00030136,2]
[311536382,1705198240821,-500.0,0.00030136,2]
[311536383,1705198240830,-500.0,0.00030136,2]
[311536384,1705198240839,-500.0,0.00030136,2]
[311536385,1705198240851,-500.0,0.00030136,2]
[311536386,1705198240861,-500.0,0.00030136,2]
[311536387,1705198240871,-500.0,0.00030136,2]
[311536388,1705198240881,-508.05605959,0.00030136,2]
[311536389,1705198240891,-500.0,0.00030136,2]
[311536390,1705198240901,-470.23578443,0.00030136,2]
[311536391,1705198240910,-502.5804102,0.00030136,2]